[Event "Early-Titled-Tuesday-Blitz-May-07-2024"]
[Site "Chess.com"]
[Date "2024.05.07"]
[Round "7"]
[White "santosalberto1987"]
[Black "unbreakablepawn35"]
[Result "1-0"]
[WhiteElo "2570"]
[BlackElo "2413"]
[TimeControl "180+1"]
[EndTime "9:20:32 PDT"]
[Termination "santosalberto1987 won by resignation"]

1. e4 {[%clk 0:03:00.9]} 1... d5 {[%clk 0:02:57.6]} 2. exd5 {[%clk 0:03:00.2]}
2... Qxd5 {[%clk 0:02:58.5]} 3. Nf3 {[%clk 0:03:00.1]} 3... Nf6 {[%clk
0:02:57.5]} 4. d4 {[%clk 0:02:59.5]} 4... g6 {[%clk 0:02:47.5]} 5. c4 {[%clk
0:02:56.9]} 5... Qd8 {[%clk 0:02:46.7]} 6. Nc3 {[%clk 0:02:55.4]} 6... Bg7
{[%clk 0:02:47.2]} 7. h3 {[%clk 0:02:53.8]} 7... O-O {[%clk 0:02:47.5]} 8. Be2
{[%clk 0:02:49.7]} 8... c6 {[%clk 0:02:46.4]} 9. O-O {[%clk 0:02:49.1]} 9... Bf5
{[%clk 0:02:44]} 10. Re1 {[%clk 0:02:48.8]} 10... Ne4 {[%clk 0:02:39.9]} 11.
Nxe4 {[%clk 0:02:42.7]} 11... Bxe4 {[%clk 0:02:40.8]} 12. Be3 {[%clk 0:02:43.1]}
12... Bxf3 {[%clk 0:02:36.1]} 13. Bxf3 {[%clk 0:02:43.1]} 13... e6 {[%clk
0:02:36.7]} 14. d5 {[%clk 0:02:38.8]} 14... exd5 {[%clk 0:02:30.5]} 15. cxd5
{[%clk 0:02:39]} 15... Bxb2 {[%clk 0:02:13.2]} 16. Rb1 {[%clk 0:02:37.7]} 16...
Bc3 {[%clk 0:02:13.9]} 17. dxc6 {[%clk 0:02:31.8]} 17... Nxc6 {[%clk 0:01:53.2]}
18. Qxd8 {[%clk 0:02:24.4]} 18... Raxd8 {[%clk 0:01:38.6]} 19. Rec1 {[%clk
0:02:24.5]} 19... Bd2 {[%clk 0:01:36.8]} 20. Bxd2 {[%clk 0:02:22.5]} 20... Rxd2
{[%clk 0:01:37.7]} 21. Rxb7 {[%clk 0:02:22.5]} 21... Nd4 {[%clk 0:01:37.8]} 22.
Rxa7 {[%clk 0:02:16.4]} 22... Re8 {[%clk 0:00:51.3]} 23. Rcc7 {[%clk 0:01:58.8]}
23... Re1+ {[%clk 0:00:16.8]} 24. Kh2 {[%clk 0:01:58.7]} 24... Nxf3+ {[%clk
0:00:17.7]} 25. gxf3 {[%clk 0:01:58.6]} 25... Rxf2+ {[%clk 0:00:18.2]} 26. Kg3
{[%clk 0:01:59]} 26... Rb2 {[%clk 0:00:18.3]} 27. Rxf7 {[%clk 0:01:57.9]} 27...
Rg1+ {[%clk 0:00:18.1]} 28. Kf4 {[%clk 0:01:55.8]} 28... Rxa2 {[%clk 0:00:16.9]}
29. Rg7+ {[%clk 0:01:51.6]} 29... Kf8 {[%clk 0:00:17.3]} 30. Raf7+ {[%clk
0:01:33.6]} 30... Ke8 {[%clk 0:00:17.2]} 31. Rb7 {[%clk 0:01:25.2]} 31... Ra4+
{[%clk 0:00:16.5]} 32. Ke3 {[%clk 0:01:24]} 32... Kf8 {[%clk 0:00:16.8]} 33.
Rxh7 {[%clk 0:01:23]} 33... Re1+ {[%clk 0:00:17.3]} 34. Kf2 {[%clk 0:01:22.6]}
1-0

[Event "Early-Titled-Tuesday-Blitz-May-07-2024"]
[Site "Chess.com"]
[Date "2024.05.07"]
[Round "7"]
[White "Fh2411"]
[Black "IndianSchoolOfSuffering"]
[Result "1-0"]
[WhiteElo "2533"]
[BlackElo "2392"]
[TimeControl "180+1"]
[EndTime "9:20:46 PDT"]
[Termination "Fh2411 won by resignation"]

1. d4 {[%clk 0:02:55.1]} 1... Nf6 {[%clk 0:02:56.5]} 2. Nf3 {[%clk 0:02:55.5]}
2... g6 {[%clk 0:02:46.8]} 3. c4 {[%clk 0:02:54.9]} 3... Bg7 {[%clk 0:02:44.8]}
4. Nc3 {[%clk 0:02:55.4]} 4... d5 {[%clk 0:02:44.5]} 5. Bf4 {[%clk 0:02:54]}
5... c5 {[%clk 0:02:38.2]} 6. e3 {[%clk 0:02:52.2]} 6... O-O {[%clk 0:02:37.4]}
7. Be5 {[%clk 0:02:43.8]} 7... cxd4 {[%clk 0:02:36.6]} 8. Bxd4 {[%clk
0:02:41.6]} 8... dxc4 {[%clk 0:02:34]} 9. Bxc4 {[%clk 0:02:40.8]} 9... Nc6
{[%clk 0:02:34]} 10. O-O {[%clk 0:02:38.2]} 10... Nxd4 {[%clk 0:02:34]} 11. Nxd4
{[%clk 0:02:39.1]} 11... a6 {[%clk 0:02:34.3]} 12. Be2 {[%clk 0:02:36.2]} 12...
e5 {[%clk 0:02:22.6]} 13. Nb3 {[%clk 0:02:33]} 13... Qe7 {[%clk 0:02:19.4]} 14.
Na4 {[%clk 0:01:52.4]} 14... Rd8 {[%clk 0:02:13.5]} 15. Qc1 {[%clk 0:01:47.6]}
15... Bf5 {[%clk 0:02:11.1]} 16. Nb6 {[%clk 0:01:43.4]} 16... Rab8 {[%clk
0:02:10.2]} 17. Qc5 {[%clk 0:01:42]} 17... Qe8 {[%clk 0:02:05.8]} 18. Rfd1
{[%clk 0:01:36.9]} 18... Ne4 {[%clk 0:02:00.9]} 19. Qc7 {[%clk 0:01:29.5]} 19...
Bf8 {[%clk 0:01:46.6]} 20. f3 {[%clk 0:01:17.3]} 20... Bd6 {[%clk 0:01:37.3]}
21. Qc1 {[%clk 0:01:16.9]} 21... Nf6 {[%clk 0:01:35.4]} 22. a3 {[%clk
0:00:54.6]} 22... Be6 {[%clk 0:01:30.7]} 23. Nc5 {[%clk 0:00:52.3]} 23... Qc6
{[%clk 0:01:13.6]} 24. Nxe6 {[%clk 0:00:51.3]} 24... fxe6 {[%clk 0:01:04.3]} 25.
Qxc6 {[%clk 0:00:51.3]} 25... bxc6 {[%clk 0:01:04.5]} 26. Nc4 {[%clk 0:00:52]}
26... Bc7 {[%clk 0:01:03.8]} 27. Kf1 {[%clk 0:00:44.4]} 27... Nd5 {[%clk
0:01:03.2]} 28. Rac1 {[%clk 0:00:43.6]} 28... Kf7 {[%clk 0:01:00.2]} 29. e4
{[%clk 0:00:36.3]} 29... Nf4 {[%clk 0:00:58.8]} 30. g3 {[%clk 0:00:36.3]} 30...
Nxe2 {[%clk 0:00:58.2]} 31. Kxe2 {[%clk 0:00:37.2]} 31... a5 {[%clk 0:00:55.9]}
32. Rxd8 {[%clk 0:00:35.7]} 32... Rxd8 {[%clk 0:00:55.6]} 33. Rd1 {[%clk
0:00:36.6]} 33... Rb8 {[%clk 0:00:46.7]} 34. Rd7+ {[%clk 0:00:36]} 1-0

[Event "Early-Titled-Tuesday-Blitz-May-07-2024"]
[Site "Chess.com"]
[Date "2024.05.07"]
[Round "7"]
[White "TitarovVasiliYouTube"]
[Black "Alexandr_Kholin"]
[Result "0-1"]
[WhiteElo "2611"]
[BlackElo "2501"]
[TimeControl "180+1"]
[EndTime "9:20:47 PDT"]
[Termination "Alexandr_Kholin won by resignation"]

1. c4 {[%clk 0:03:00.9]} 1... c6 {[%clk 0:02:57.2]} 2. g3 {[%clk 0:02:59.2]}
2... Nf6 {[%clk 0:02:56.6]} 3. Bg2 {[%clk 0:02:59.1]} 3... e5 {[%clk 0:02:56.5]}
4. d3 {[%clk 0:02:58.6]} 4... Bc5 {[%clk 0:02:55.9]} 5. Nf3 {[%clk 0:02:58.1]}
5... d6 {[%clk 0:02:55.4]} 6. O-O {[%clk 0:02:56.7]} 6... O-O {[%clk 0:02:54]}
7. Nc3 {[%clk 0:02:55.1]} 7... a5 {[%clk 0:02:49.9]} 8. d4 {[%clk 0:02:49.1]}
8... exd4 {[%clk 0:02:44.7]} 9. Nxd4 {[%clk 0:02:50]} 9... Re8 {[%clk
0:02:43.9]} 10. e4 {[%clk 0:02:47.2]} 10... Nbd7 {[%clk 0:02:41.5]} 11. Nb3
{[%clk 0:02:42]} 11... Bb4 {[%clk 0:02:33.5]} 12. Qc2 {[%clk 0:01:59.7]} 12...
Bxc3 {[%clk 0:02:31.1]} 13. bxc3 {[%clk 0:01:58.9]} 13... a4 {[%clk 0:02:31.4]}
14. Nd4 {[%clk 0:01:58.8]} 14... Nc5 {[%clk 0:02:32]} 15. Re1 {[%clk 0:01:58]}
15... a3 {[%clk 0:02:27.1]} 16. Bf4 {[%clk 0:01:52.2]} 16... Ng4 {[%clk
0:02:24.5]} 17. Rad1 {[%clk 0:01:47.4]} 17... Qf6 {[%clk 0:02:21.7]} 18. Nb3
{[%clk 0:01:36.8]} 18... Ne5 {[%clk 0:02:14.5]} 19. Rd4 {[%clk 0:01:16.9]} 19...
Ne6 {[%clk 0:01:44.9]} 20. Bxe5 {[%clk 0:00:54.2]} 20... dxe5 {[%clk 0:01:39.8]}
21. Rdd1 {[%clk 0:00:44.4]} 21... h5 {[%clk 0:01:39.3]} 22. h4 {[%clk
0:00:37.2]} 22... g6 {[%clk 0:01:34.5]} 23. c5 {[%clk 0:00:37]} 23... Qe7 {[%clk
0:01:33.3]} 24. Nd2 {[%clk 0:00:25.4]} 24... Nxc5 {[%clk 0:01:31.1]} 25. Nc4
{[%clk 0:00:25.5]} 25... Bg4 {[%clk 0:01:31.3]} 26. f3 {[%clk 0:00:24.9]} 26...
Be6 {[%clk 0:01:29.3]} 27. Bf1 {[%clk 0:00:21.8]} 27... Na4 {[%clk 0:01:26.1]}
28. Nxe5 {[%clk 0:00:19.4]} 28... Qc5+ {[%clk 0:01:25.1]} 29. Qf2 {[%clk
0:00:17.2]} 29... Qxe5 {[%clk 0:01:25.2]} 30. f4 {[%clk 0:00:17.9]} 30... Qxc3
{[%clk 0:01:24.9]} 31. f5 {[%clk 0:00:18]} 31... gxf5 {[%clk 0:01:20.3]} 32.
exf5 {[%clk 0:00:18.9]} 32... Bd5 {[%clk 0:01:20.5]} 33. Rxe8+ {[%clk
0:00:14.9]} 33... Rxe8 {[%clk 0:01:19.9]} 34. Qf4 {[%clk 0:00:14.8]} 34... Qe3+
{[%clk 0:01:18.4]} 35. Qxe3 {[%clk 0:00:14.9]} 35... Rxe3 {[%clk 0:01:19.3]} 36.
Kf2 {[%clk 0:00:14.5]} 36... Rf3+ {[%clk 0:01:19.1]} 37. Ke2 {[%clk 0:00:14.8]}
37... Nc3+ {[%clk 0:01:17.6]} 38. Kd2 {[%clk 0:00:14.8]} 38... Nxd1 {[%clk
0:01:18.5]} 0-1

[Event "Early-Titled-Tuesday-Blitz-May-07-2024"]
[Site "Chess.com"]
[Date "2024.05.07"]
[Round "7"]
[White "Zq1"]
[Black "scarabee43"]
[Result "0-1"]
[WhiteElo "2623"]
[BlackElo "2825"]
[TimeControl "180+1"]
[EndTime "9:20:50 PDT"]
[Termination "scarabee43 won on time"]

1. d4 {[%clk 0:03:00.9]} 1... Nf6 {[%clk 0:02:59.8]} 2. c4 {[%clk 0:03:00.7]}
2... e6 {[%clk 0:03:00.5]} 3. g3 {[%clk 0:02:58.6]} 3... d5 {[%clk 0:02:59.7]}
4. Bg2 {[%clk 0:02:58.4]} 4... Be7 {[%clk 0:03:00.4]} 5. Nf3 {[%clk 0:02:58.3]}
5... O-O {[%clk 0:03:01.1]} 6. Qc2 {[%clk 0:02:58.3]} 6... b6 {[%clk 0:02:59.3]}
7. cxd5 {[%clk 0:02:55.5]} 7... exd5 {[%clk 0:02:59.1]} 8. O-O {[%clk
0:02:54.5]} 8... Bb7 {[%clk 0:02:58.2]} 9. Nc3 {[%clk 0:02:54.5]} 9... Nbd7
{[%clk 0:02:58.1]} 10. Bf4 {[%clk 0:02:47.1]} 10... c5 {[%clk 0:02:53.8]} 11.
Rfd1 {[%clk 0:02:41.7]} 11... Rc8 {[%clk 0:02:49.6]} 12. dxc5 {[%clk 0:02:35.7]}
12... bxc5 {[%clk 0:02:49.2]} 13. Qb3 {[%clk 0:02:34.6]} 13... Nb6 {[%clk
0:02:47.5]} 14. a4 {[%clk 0:02:22.2]} 14... a5 {[%clk 0:02:33]} 15. Ne5 {[%clk
0:02:10.3]} 15... c4 {[%clk 0:02:25.3]} 16. Qa2 {[%clk 0:02:05.5]} 16... Bb4
{[%clk 0:02:23.7]} 17. Nb5 {[%clk 0:01:36.2]} 17... Qe7 {[%clk 0:02:18.9]} 18.
h4 {[%clk 0:01:16.5]} 18... Rfd8 {[%clk 0:01:44.3]} 19. b3 {[%clk 0:01:10.2]}
19... c3 {[%clk 0:01:41]} 20. Qc2 {[%clk 0:01:08.9]} 20... Ne4 {[%clk
0:01:39.7]} 21. Nf3 {[%clk 0:00:55]} 21... Nd7 {[%clk 0:01:34.5]} 22. Nfd4
{[%clk 0:00:49]} 22... Ndf6 {[%clk 0:01:31.7]} 23. Nf5 {[%clk 0:00:47]} 23...
Qe6 {[%clk 0:01:25.7]} 24. Nbd4 {[%clk 0:00:45.6]} 24... Qb6 {[%clk 0:01:24]}
25. Be3 {[%clk 0:00:40.4]} 25... Ng4 {[%clk 0:01:22.6]} 26. Bxe4 {[%clk
0:00:39.2]} 26... dxe4 {[%clk 0:01:19]} 27. Nb5 {[%clk 0:00:25.4]} 27... Qf6
{[%clk 0:01:14.1]} 28. Rxd8+ {[%clk 0:00:12.3]} 28... Rxd8 {[%clk 0:01:14]} 29.
Nbd4 {[%clk 0:00:06.8]} 29... Nxe3 {[%clk 0:01:03.1]} 30. fxe3 {[%clk 0:00:05]}
30... Qe5 {[%clk 0:01:02.8]} 0-1

[Event "Early-Titled-Tuesday-Blitz-May-07-2024"]
[Site "Chess.com"]
[Date "2024.05.07"]
[Round "7"]
[White "Ryukchess81"]
[Black "Bilan_Danila"]
[Result "1-0"]
[WhiteElo "2416"]
[BlackElo "2548"]
[TimeControl "180+1"]
[EndTime "9:20:52 PDT"]
[Termination "Ryukchess81 won on time"]

1. d4 {[%clk 0:03:00.9]} 1... d5 {[%clk 0:02:59.8]} 2. Bf4 {[%clk 0:03:00]} 2...
Nf6 {[%clk 0:02:59.9]} 3. e3 {[%clk 0:02:59]} 3... c5 {[%clk 0:03:00.6]} 4. dxc5
{[%clk 0:02:59]} 4... Nc6 {[%clk 0:02:57.6]} 5. Bb5 {[%clk 0:02:59.6]} 5... Qa5+
{[%clk 0:02:54]} 6. Nc3 {[%clk 0:02:55.7]} 6... e6 {[%clk 0:02:15.9]} 7. Qd4
{[%clk 0:02:55.7]} 7... Bd7 {[%clk 0:01:02.5]} 8. Bxc6 {[%clk 0:02:55.2]} 8...
bxc6 {[%clk 0:00:57.9]} 9. b4 {[%clk 0:02:55.9]} 9... Qa6 {[%clk 0:00:58.1]} 10.
Nge2 {[%clk 0:02:56.6]} 10... Be7 {[%clk 0:00:51.6]} 11. O-O {[%clk 0:02:56.7]}
11... O-O {[%clk 0:00:52]} 12. a4 {[%clk 0:02:52.7]} 12... Ne8 {[%clk
0:00:28.6]} 13. Rfb1 {[%clk 0:02:52.3]} 13... f6 {[%clk 0:00:17.5]} 14. b5
{[%clk 0:02:52.6]} 14... Qa5 {[%clk 0:00:12.5]} 15. Qd3 {[%clk 0:02:25.5]} 15...
Bxc5 {[%clk 0:00:08.6]} 16. Nc1 {[%clk 0:02:17]} 16... e5 {[%clk 0:00:07]} 17.
Nb3 {[%clk 0:02:12.2]} 17... Qb6 {[%clk 0:00:04.7]} 18. Nxd5 {[%clk 0:02:12.7]}
18... cxd5 {[%clk 0:00:04.5]} 19. Qxd5+ {[%clk 0:02:13.1]} 19... Be6 {[%clk
0:00:05.1]} 20. Qxa8 {[%clk 0:02:11.2]} 20... exf4 {[%clk 0:00:05.7]} 21. Nxc5
{[%clk 0:02:06.7]} 21... Qxc5 {[%clk 0:00:06.6]} 22. exf4 {[%clk 0:02:05.2]}
22... Bd5 {[%clk 0:00:03.5]} 23. Qd8 {[%clk 0:01:55.6]} 23... Nd6 {[%clk
0:00:04]} 24. Qa5 {[%clk 0:01:55.6]} 24... Ne4 {[%clk 0:00:04.3]} 25. Qe1 {[%clk
0:01:50.9]} 25... Nc3 {[%clk 0:00:02]} 26. Rb2 {[%clk 0:01:35.7]} 26... Kf7
{[%clk 0:00:02.6]} 27. Qe3 {[%clk 0:01:34.7]} 27... Qxe3 {[%clk 0:00:02.4]} 28.
fxe3 {[%clk 0:01:35.6]} 28... Re8 {[%clk 0:00:01.5]} 29. a5 {[%clk 0:01:24.8]}
29... Rxe3 {[%clk 0:00:01.4]} 30. b6 {[%clk 0:01:24.3]} 30... Re2 {[%clk
0:00:02]} 31. b7 {[%clk 0:01:16.5]} 31... Rxg2+ {[%clk 0:00:01.3]} 32. Kf1
{[%clk 0:01:17.2]} 32... Rxh2 {[%clk 0:00:00.8]} 33. b8=Q {[%clk 0:01:16]} 33...
Bc4+ {[%clk 0:00:00.9]} 34. Kg1 {[%clk 0:01:14]} 1-0

[Event "Early-Titled-Tuesday-Blitz-May-07-2024"]
[Site "Chess.com"]
[Date "2024.05.07"]
[Round "7"]
[White "Caterpiller35"]
[Black "rhwr"]
[Result "0-1"]
[WhiteElo "2482"]
[BlackElo "2302"]
[TimeControl "180+1"]
[EndTime "9:20:58 PDT"]
[Termination "rhwr won by checkmate"]

1. e4 {[%clk 0:02:57.5]} 1... c5 {[%clk 0:02:59.2]} 2. Nf3 {[%clk 0:02:57.4]}
2... d6 {[%clk 0:02:59.2]} 3. d4 {[%clk 0:02:57.9]} 3... cxd4 {[%clk 0:03:00.1]}
4. Nxd4 {[%clk 0:02:58.8]} 4... Nf6 {[%clk 0:03:00.2]} 5. Nc3 {[%clk 0:02:59.3]}
5... e5 {[%clk 0:03:00.8]} 6. Bb5+ {[%clk 0:02:53.8]} 6... Bd7 {[%clk
0:03:00.5]} 7. Bxd7+ {[%clk 0:02:50.9]} 7... Qxd7 {[%clk 0:03:00.1]} 8. Nf5
{[%clk 0:02:49.8]} 8... d5 {[%clk 0:03:00.1]} 9. Nxd5 {[%clk 0:02:42.3]} 9...
Nxe4 {[%clk 0:02:55.9]} 10. Nfe3 {[%clk 0:02:33.7]} 10... Bc5 {[%clk 0:02:54.2]}
11. O-O {[%clk 0:02:29.1]} 11... O-O {[%clk 0:02:44.3]} 12. b4 {[%clk 0:02:04]}
12... Bd4 {[%clk 0:02:34.7]} 13. Nf5 {[%clk 0:02:03.2]} 13... Kh8 {[%clk
0:01:30.6]} 14. Nxd4 {[%clk 0:01:58.3]} 14... Qxd5 {[%clk 0:01:26.4]} 15. Ne2
{[%clk 0:01:48.5]} 15... Qe6 {[%clk 0:01:19.5]} 16. Bb2 {[%clk 0:01:44.1]} 16...
Nc6 {[%clk 0:01:18.8]} 17. c3 {[%clk 0:01:39.7]} 17... Rad8 {[%clk 0:01:18]} 18.
Qc2 {[%clk 0:01:37.5]} 18... Rd2 {[%clk 0:01:13.9]} 19. Qxe4 {[%clk 0:01:37.1]}
19... Rxb2 {[%clk 0:01:13.4]} 20. f4 {[%clk 0:01:13.3]} 20... f5 {[%clk
0:01:11]} 21. Qe3 {[%clk 0:01:10.4]} 21... e4 {[%clk 0:01:05.8]} 22. Rfd1 {[%clk
0:00:58.7]} 22... Rxa2 {[%clk 0:01:03.1]} 23. Rxa2 {[%clk 0:00:57.2]} 23... Qxa2
{[%clk 0:01:02.2]} 24. Qc5 {[%clk 0:00:56.3]} 24... Rg8 {[%clk 0:00:53.5]} 25.
Nd4 {[%clk 0:00:50.6]} 25... Nxd4 {[%clk 0:00:49]} 26. Qxd4 {[%clk 0:00:50.8]}
26... Qe2 {[%clk 0:00:45.8]} 27. Qd2 {[%clk 0:00:27.9]} 27... Qg4 {[%clk
0:00:43.4]} 28. Qe3 {[%clk 0:00:25.8]} 28... Qxd1+ {[%clk 0:00:42.3]} 29. Kf2
{[%clk 0:00:25.4]} 29... Rd8 {[%clk 0:00:41.6]} 30. Qxa7 {[%clk 0:00:25]} 30...
Rd2+ {[%clk 0:00:37.3]} 31. Kg3 {[%clk 0:00:25.2]} 31... Qg4# {[%clk 0:00:36.2]}
0-1

[Event "Early-Titled-Tuesday-Blitz-May-07-2024"]
[Site "Chess.com"]
[Date "2024.05.07"]
[Round "7"]
[White "KuzubovYuriy"]
[Black "IMchanged"]
[Result "1-0"]
[WhiteElo "2967"]
[BlackElo "2766"]
[TimeControl "180+1"]
[EndTime "9:21:01 PDT"]
[Termination "KuzubovYuriy won by resignation"]

1. d4 {[%clk 0:03:00.9]} 1... Nf6 {[%clk 0:02:57.8]} 2. c4 {[%clk 0:03:00.4]}
2... c5 {[%clk 0:02:58.4]} 3. d5 {[%clk 0:02:54.2]} 3... b5 {[%clk 0:02:58.7]}
4. Nf3 {[%clk 0:02:54.4]} 4... Bb7 {[%clk 0:02:57.3]} 5. b3 {[%clk 0:02:47.9]}
5... e6 {[%clk 0:02:54.2]} 6. dxe6 {[%clk 0:02:45.9]} 6... fxe6 {[%clk
0:02:54.1]} 7. cxb5 {[%clk 0:02:44.4]} 7... Be7 {[%clk 0:02:46.2]} 8. g3 {[%clk
0:02:40]} 8... O-O {[%clk 0:02:43.3]} 9. Bg2 {[%clk 0:02:39.9]} 9... Ne4 {[%clk
0:02:23.9]} 10. Bb2 {[%clk 0:02:37.4]} 10... Bf6 {[%clk 0:02:17]} 11. Bxf6
{[%clk 0:01:52.4]} 11... Qxf6 {[%clk 0:02:14.6]} 12. Nbd2 {[%clk 0:01:52.3]}
12... Nxd2 {[%clk 0:01:55.7]} 13. Kxd2 {[%clk 0:01:47.6]} 13... a6 {[%clk
0:01:51.3]} 14. Qc2 {[%clk 0:01:41.7]} 14... axb5 {[%clk 0:01:47.4]} 15. Rhd1
{[%clk 0:01:39]} 15... c4 {[%clk 0:01:37.4]} 16. bxc4 {[%clk 0:01:34.7]} 16...
bxc4 {[%clk 0:01:36.6]} 17. Qxc4 {[%clk 0:01:24.2]} 17... Ba6 {[%clk 0:01:29.7]}
18. Qd4 {[%clk 0:01:15.5]} 18... Qd8 {[%clk 0:01:01]} 19. Ke1 {[%clk 0:01:12.2]}
19... d5 {[%clk 0:00:55.3]} 20. Rac1 {[%clk 0:00:55.4]} 20... Bc4 {[%clk
0:00:49.2]} 21. Rxc4 {[%clk 0:00:47.7]} 21... Qa5+ {[%clk 0:00:44.2]} 22. Rc3
{[%clk 0:00:46.9]} 22... Nc6 {[%clk 0:00:40.1]} 23. Qd2 {[%clk 0:00:46.6]} 23...
Nb4 {[%clk 0:00:39.4]} 24. Kf1 {[%clk 0:00:41.9]} 24... Nxa2 {[%clk 0:00:39.4]}
25. Re3 {[%clk 0:00:40.6]} 25... Qa4 {[%clk 0:00:37.8]} 26. Rb1 {[%clk
0:00:30.3]} 26... Nb4 {[%clk 0:00:34.3]} 27. Qxb4 {[%clk 0:00:27.6]} 27... Qxb4
{[%clk 0:00:27.1]} 28. Rxb4 {[%clk 0:00:27.4]} 28... Ra1+ {[%clk 0:00:28]} 29.
Ne1 {[%clk 0:00:27]} 29... Rc8 {[%clk 0:00:28.4]} 30. f4 {[%clk 0:00:25.9]}
30... Rcc1 {[%clk 0:00:28.9]} 31. Rxe6 {[%clk 0:00:25.2]} 1-0

[Event "Early-Titled-Tuesday-Blitz-May-07-2024"]
[Site "Chess.com"]
[Date "2024.05.07"]
[Round "7"]
[White "Casablanca"]
[Black "ImportedItalianMaple"]
[Result "1-0"]
[WhiteElo "2721"]
[BlackElo "2505"]
[TimeControl "180+1"]
[EndTime "9:21:03 PDT"]
[Termination "Casablanca won by resignation"]

1. d4 {[%clk 0:03:00.9]} 1... g6 {[%clk 0:03:00.4]} 2. e4 {[%clk 0:03:00.6]}
2... Bg7 {[%clk 0:03:01]} 3. Be3 {[%clk 0:02:59.5]} 3... d6 {[%clk 0:02:58.7]}
4. Qd2 {[%clk 0:02:58.2]} 4... a6 {[%clk 0:02:49]} 5. Nc3 {[%clk 0:02:54.8]}
5... b5 {[%clk 0:02:48.9]} 6. O-O-O {[%clk 0:02:55]} 6... Bb7 {[%clk 0:02:48.8]}
7. f3 {[%clk 0:02:54.6]} 7... Nd7 {[%clk 0:02:46.9]} 8. h4 {[%clk 0:02:54.9]}
8... h6 {[%clk 0:02:43.9]} 9. g4 {[%clk 0:02:34.1]} 9... e6 {[%clk 0:02:28.1]}
10. Bg2 {[%clk 0:02:32.9]} 10... Ngf6 {[%clk 0:02:23.7]} 11. Kb1 {[%clk
0:02:28.7]} 11... c5 {[%clk 0:01:59.5]} 12. Nce2 {[%clk 0:02:26.8]} 12... c4
{[%clk 0:01:49.5]} 13. Ng3 {[%clk 0:02:21.8]} 13... Rc8 {[%clk 0:01:47]} 14.
N1e2 {[%clk 0:02:22.3]} 14... a5 {[%clk 0:01:38.8]} 15. g5 {[%clk 0:02:22.8]}
15... Ng8 {[%clk 0:01:30.4]} 16. h5 {[%clk 0:02:21.8]} 16... b4 {[%clk
0:01:12.7]} 17. hxg6 {[%clk 0:02:22.2]} 17... c3 {[%clk 0:01:10.5]} 18. gxf7+
{[%clk 0:02:22.1]} 18... Kxf7 {[%clk 0:01:11.1]} 19. Qd3 {[%clk 0:02:15]} 19...
hxg5 {[%clk 0:00:46.8]} 20. Rxh8 {[%clk 0:02:13.1]} 20... Bxh8 {[%clk
0:00:47.7]} 21. Rh1 {[%clk 0:02:13.2]} 21... Bg7 {[%clk 0:00:33.4]} 22. Bh3
{[%clk 0:01:59]} 22... Ngf6 {[%clk 0:00:20.6]} 23. Bg4 {[%clk 0:01:49.3]} 23...
Nxg4 {[%clk 0:00:19]} 24. fxg4 {[%clk 0:01:50.2]} 24... Nf6 {[%clk 0:00:19.5]}
25. Bxg5 {[%clk 0:01:48.8]} 25... Qb6 {[%clk 0:00:17.1]} 26. Rf1 {[%clk
0:01:47.2]} 26... Ba6 {[%clk 0:00:17.7]} 27. Qf3 {[%clk 0:01:47.4]} 27... Rf8
{[%clk 0:00:14.4]} 28. Bxf6 {[%clk 0:01:47.8]} 28... Kg8 {[%clk 0:00:14.9]} 29.
Nh5 {[%clk 0:01:46.1]} 29... Bxe2 {[%clk 0:00:08.3]} 30. Qxe2 {[%clk 0:01:44.6]}
30... e5 {[%clk 0:00:05.4]} 31. Bxg7 {[%clk 0:01:41]} 31... Rxf1+ {[%clk
0:00:03.1]} 32. Qxf1 {[%clk 0:01:41.9]} 32... Qxd4 {[%clk 0:00:03.7]} 33. Qf8+
{[%clk 0:01:41.6]} 33... Kh7 {[%clk 0:00:04.6]} 34. Qf5+ {[%clk 0:01:39.8]}
34... Kg8 {[%clk 0:00:04.9]} 35. Qe6+ {[%clk 0:01:22.3]} 35... Kh7 {[%clk
0:00:04.6]} 36. Qh6+ {[%clk 0:01:08.3]} 36... Kg8 {[%clk 0:00:04.8]} 37. Bf6
{[%clk 0:01:02.6]} 37... Kf7 {[%clk 0:00:04.7]} 38. Qg7+ {[%clk 0:01:01.1]} 1-0

[Event "Early-Titled-Tuesday-Blitz-May-07-2024"]
[Site "Chess.com"]
[Date "2024.05.07"]
[Round "7"]
[White "ploxoi"]
[Black "imdvb6307"]
[Result "1-0"]
[WhiteElo "2335"]
[BlackElo "2515"]
[TimeControl "180+1"]
[EndTime "9:21:06 PDT"]
[Termination "ploxoi won by checkmate"]

1. d4 {[%clk 0:03:00.9]} 1... d5 {[%clk 0:02:59.2]} 2. c4 {[%clk 0:02:59.9]}
2... c6 {[%clk 0:02:59.5]} 3. Nf3 {[%clk 0:03:00]} 3... Nf6 {[%clk 0:02:59.8]}
4. e3 {[%clk 0:03:00.3]} 4... Bg4 {[%clk 0:02:59.5]} 5. h3 {[%clk 0:02:59.7]}
5... Bxf3 {[%clk 0:02:59.2]} 6. Qxf3 {[%clk 0:03:00.6]} 6... e6 {[%clk
0:02:59.7]} 7. Nd2 {[%clk 0:03:01.1]} 7... Nbd7 {[%clk 0:03:00.1]} 8. Bd3 {[%clk
0:03:01.7]} 8... Bd6 {[%clk 0:02:49.6]} 9. O-O {[%clk 0:03:01.8]} 9... O-O
{[%clk 0:02:49.9]} 10. Rd1 {[%clk 0:03:01.1]} 10... e5 {[%clk 0:02:49.5]} 11.
cxd5 {[%clk 0:02:56.8]} 11... cxd5 {[%clk 0:02:49.7]} 12. dxe5 {[%clk
0:02:55.9]} 12... Nxe5 {[%clk 0:02:50]} 13. Qe2 {[%clk 0:02:56.2]} 13... Nxd3
{[%clk 0:02:50.2]} 14. Qxd3 {[%clk 0:02:56.3]} 14... Qe7 {[%clk 0:02:40.6]} 15.
b3 {[%clk 0:02:53.8]} 15... Qe5 {[%clk 0:02:40.4]} 16. Rb1 {[%clk 0:02:46.9]}
16... Qh2+ {[%clk 0:02:40.1]} 17. Kf1 {[%clk 0:02:47.3]} 17... Qh1+ {[%clk
0:02:39.2]} 18. Ke2 {[%clk 0:02:47.7]} 18... Qxg2 {[%clk 0:02:39.2]} 19. Bb2
{[%clk 0:02:45.4]} 19... Be7 {[%clk 0:02:19.9]} 20. Nf3 {[%clk 0:02:37.1]} 20...
Qxh3 {[%clk 0:02:07.8]} 21. Rh1 {[%clk 0:02:36.3]} 21... Qe6 {[%clk 0:00:47.5]}
22. Bxf6 {[%clk 0:02:33.5]} 22... g6 {[%clk 0:00:47.3]} 23. Bb2 {[%clk
0:01:56.5]} 23... Bf6 {[%clk 0:00:34.5]} 24. Bxf6 {[%clk 0:01:10.9]} 24... Qxf6
{[%clk 0:00:34.5]} 25. Rh4 {[%clk 0:01:11.8]} 25... Rac8 {[%clk 0:00:28]} 26.
Rd4 {[%clk 0:01:11.8]} 26... Rfd8 {[%clk 0:00:24.6]} 27. Rd1 {[%clk 0:01:11.9]}
27... h5 {[%clk 0:00:09.3]} 28. Rxd5 {[%clk 0:01:08]} 28... Rxd5 {[%clk
0:00:09.6]} 29. Qxd5 {[%clk 0:01:08.9]} 29... Qb2+ {[%clk 0:00:09.2]} 30. Rd2
{[%clk 0:01:09.2]} 30... Qa3 {[%clk 0:00:09.5]} 31. Qxb7 {[%clk 0:01:03.6]}
31... Rc1 {[%clk 0:00:07.1]} 32. Qb8+ {[%clk 0:01:04]} 32... Kg7 {[%clk
0:00:06.1]} 33. Qe5+ {[%clk 0:01:04]} 33... Kh7 {[%clk 0:00:03.6]} 34. Ng5+
{[%clk 0:01:04]} 34... Kh6 {[%clk 0:00:03]} 35. Nxf7+ {[%clk 0:01:04]} 35... Kh7
{[%clk 0:00:02.7]} 36. Qh8# {[%clk 0:01:03.9]} 1-0